bitfinex-derivatives/quotes_SOLF0:USTF0_20260104
["timestamp","ask_amount","ask_price","bid_price","bid_amount"]
[1767529069540,2.7103125,134.5,134.45,6.80667546]
[1767529082061,6.6946,134.5,134.44,6.6974]
[1767529082265,2.80056963,134.49,134.43,0.11225605]
[1767529082864,2.80056963,134.49,134.45,0.0476176]
[1767529083454,9.49556963,134.49,134.45,0.0476176]
[1767529083653,9.49556963,134.49,134.43,0.11225605]
[1767529083654,2.80056963,134.48,134.43,0.11225605]
[1767529084764,2.80056963,134.48,134.44,0.05371083]
[1767529086567,0.04861956,134.47,134.44,0.05371083]
[1767529086971,0.04861956,134.47,134.44,0.16674347]
[1767529087263,2.80056963,134.5,134.44,0.16674347]
[1767529087766,2.80056963,134.49,134.44,0.16674347]
[1767529087953,2.80056963,134.49,134.44,0.05371083]
[1767529089568,2.80056963,134.48,134.44,0.05371083]
[1767529096973,9.49496963,134.5,134.44,0.16853497]
[1767529097171,2.80056963,134.49,134.44,0.16853497]
[1767529098474,9.49596963,134.49,134.44,0.05371083]
[1767529098676,2.80056963,134.48,134.44,0.05371083]
[1767529099972,9.49596963,134.48,134.44,0.05371083]
[1767529100175,2.80056963,134.47,134.44,0.05371083]
[1767529107282,9.49656963,134.47,134.44,0.05371083]
[1767529107482,9.49656963,134.47,134.41,6.8146038]
[1767529108777,2.80056963,134.46,134.41,6.8146038]
[1767529110987,9.49453786,134.48,134.42,0.11871674]
[1767529113084,2.79903786,134.48,134.42,6.81701674]
[1767529116184,0.04797679,134.46,134.44,0.0546508]
[1767529120790,0.04797679,134.46,134.42,0.11871674]
[1767529121791,2.74101136,134.46,134.41,6.6989]
[1767529122091,2.74101136,134.46,134.4,6.81937545]
[1767529122389,2.74101136,134.46,134.4,0.12007545]
[1767529123595,2.74101136,134.46,134.41,6.8191201]
[1767529127894,139.8421,134.53,134.41,6.8191201]
[1767529127895,2.69303457,134.5,134.43,0.12079277]
[1767529128288,2.69303457,134.5,134.44,6.81830757]
[1767529129096,2.69303457,134.49,134.44,0.12090757]
[1767529140599,2.69303457,134.49,134.43,6.6977]
[1767529140794,2.69303457,134.49,134.43,0.12185677]
[1767529141601,2.69303457,134.49,134.42,0.12195441]
[1767529142612,2.69303457,134.49,134.43,6.6979]
[1767529147212,2.69303457,134.49,134.45,0.04810051]
[1767529147711,0.04836893,134.48,134.45,0.04810051]
[1767529148710,0.04836893,134.48,134.45,0.17070774]
[1767529148916,2.72408373,134.51,134.45,0.17070774]
[1767529149511,2.72408373,134.51,134.45,6.86750774]
[1767529150922,2.72408373,134.53,134.47,6.81868425]
[1767529151216,2.72408373,134.53,134.47,0.12278425]
[1767529151919,2.72408373,134.53,134.49,0.05358069]
[1767529158433,2.72408373,134.53,134.49,6.74848069]
[1767529159326,2.72408373,134.53,134.5,6.6943]
[1767529160126,2.72408373,134.53,134.49,6.74848069]
[1767529161332,2.72408373,134.53,134.49,0.05358069]
[1767529161836,0.05353472,134.52,134.49,0.05358069]
[1767529162938,2.77761845,134.52,134.49,0.05358069]
[1767529166239,2.77761845,134.52,134.46,6.6964]
[1767529166645,2.72408373,134.52,134.43,0.17764309]
[1767529167635,2.72408373,134.5,134.44,6.6969]
[1767529169741,2.72408373,134.5,134.43,0.17764309]
[1767529170447,0.04807358,134.48,134.45,0.05315778]
[1767529172143,81.5,134.51,134.46,0.17651855]
[1767529172349,2.81643329,134.52,134.46,0.17651855]
[1767529172649,2.81643329,134.52,134.47,6.6959]
[1767529173548,2.81643329,134.52,134.48,0.05425179]
[1767529177847,2.81643329,134.52,134.47,6.6959]
[1767529177848,2.81643329,134.52,134.45,6.6965]
[1767529178350,2.81643329,134.52,134.45,6.92683902]
[1767529179552,2.70667922,134.51,134.45,6.92683902]
[1767529186755,2.70667922,134.51,134.46,6.6964]
[1767529187858,2.70667922,134.51,134.45,6.92723902]
[1767529188957,2.70667922,134.5,134.45,0.23033902]
[1767529189155,2.70667922,134.5,134.44,6.6974]
[1767529189363,2.70667922,134.5,134.44,0.23172733]
[1767529190647,2.70667922,134.5,134.45,6.6969]
[1767529191858,2.70667922,134.63,134.51,0.23193953]
[1767529192059,2.70667922,134.61,134.53,0.23193953]
[1767529193155,2.70667922,134.61,134.53,6.92453953]
[1767529194961,2.70667922,134.61,134.54,6.6923]
[1767529200465,2.70667922,134.61,134.55,6.6918]
[1767529200965,0.04774322,134.59,134.56,6.6913]
[1767529201267,0.04774322,134.59,134.57,6.6906]
[1767529201466,2.73801793,134.63,134.55,0.23113115]
[1767529201770,2.73801793,134.63,134.56,0.28287596]
[1767529202459,20.86320739,134.64,134.58,6.92152296]
[1767529202862,23.60122532,134.64,134.58,0.23122296]
[1767529203063,23.60122532,134.64,134.6,0.05642609]
[1767529207666,20.86320739,134.64,134.6,6.97739248]
[1767529207873,20.86320739,134.64,134.6,0.28809248]
[1767529210570,20.86320739,134.64,134.6,6.97749248]
[1767529210777,20.74602118,134.64,134.6,6.97749248]
[1767529211271,20.74602118,134.64,134.61,0.23200316]
[1767529212377,20.74602118,134.64,134.61,6.92080316]
[1767529214685,20.74602118,134.64,134.61,6.6888]
[1767529218385,9.14962118,134.64,134.61,0.23255631]
[1767529218595,2.118e-05,134.64,134.61,1.71255631]
[1767529218894,2.118e-05,134.64,134.62,0.23255631]
[1767529219394,2.118e-05,134.64,134.63,6.6879]
[1767529219995,2.118e-05,134.64,134.63,6.92060631]
[1767529223088,2.73801793,134.69,134.64,6.92030374]
[1767529223290,2.73801793,134.69,134.64,0.23290374]
[1767529223894,2.73801793,134.69,134.64,6.92030374]
[1767529224487,2.73801793,134.69,134.65,0.05428193]
[1767529242203,2.88271039,134.68,134.62,6.8757675]
[1767529242394,2.88271039,134.68,134.6,0.23981306]
[1767529242804,2.83348516,134.65,134.59,6.6896]
[1767529243305,2.83348516,134.65,134.57,8.0306358]
[1767529243505,2.83348516,134.65,134.61,0.04773878]
[1767529244706,2.83348516,134.64,134.61,0.04773878]
[1767529251416,2.83348516,134.64,134.59,6.6895]
[1767529255116,0.05136018,134.63,134.59,6.6895]
[1767529255614,2.88484534,134.63,134.59,6.6895]
[1767529260717,0.05136018,134.63,134.6,6.6893]
[1767529260917,0.05136018,134.63,134.6,0.29254556]
[1767529261514,0.05136018,134.63,134.6,0.34910644]
[1767529262624,2.61354851,134.63,134.6,0.05656088]
[1767529285053,2.61354851,134.63,134.58,6.6903]
[1767529292660,2.61354851,134.63,134.59,6.6899]
[1767529294661,2.61354851,134.63,134.58,6.6901]
[1767529297158,2.61354851,134.63,134.59,6.6898]
[1767529297363,22.31,134.74,134.59,0.3516446]
[1767529297555,87.38210662,134.71,134.59,0.3516446]
[1767529297757,5.50210662,134.7,134.59,0.3516446]
[1767529298061,81.88,134.71,134.59,0.3516446]
[1767529298062,6.686,134.67,134.59,20.592647]
[1767529298258,6.686,134.67,134.59,16.72394056]
[1767529299365,2.79982062,134.66,134.59,16.72394056]
[1767529300566,2.79982062,134.66,134.61,6.6889]
[1767529301669,2.79982062,134.65,134.59,13.903147]
[1767529301870,2.79982062,134.65,134.58,13.903147]
[1767529302168,2.79982062,134.65,134.58,16.72394056]
[1767529302670,2.79982062,134.64,134.59,6.6899]
[1767529303262,2.79982062,134.7,134.6,9.51019356]
[1767529304272,2.79982062,134.66,134.6,9.51019356]
[1767529304566,2.79982062,134.66,134.6,2.82079356]
[1767529305073,2.79982062,134.66,134.62,6.6884]
[1767529306368,2.79982062,134.68,134.63,6.6879]
[1767529306571,2.79982062,134.7,134.64,2.82079356]
[1767529306868,81.88,134.71,134.66,6.6864]
[1767529307074,81.88,134.71,134.66,2.82079356]
[1767529307265,81.88,134.71,134.66,2.87777299]
[1767529307866,81.88,134.71,134.66,9.56417299]
[1767529308571,2.79982062,134.72,134.67,2.82079356]
[1767529308776,2.79982062,134.74,134.67,2.82079356]
[1767529309271,2.79982062,134.74,134.68,9.50609356]
[1767529309468,2.79982062,134.74,134.69,0.05344764]
[1767529311183,9.48242062,134.74,134.69,0.05344764]
[1767529311472,2.79982062,134.73,134.69,0.05344764]
[1767529311678,2.85579913,134.73,134.64,2.82079356]
[1767529311978,2.79982062,134.73,134.64,2.82079356]
[1767529312672,2.79982062,134.71,134.64,2.82079356]
[1767529312878,2.84811052,134.7,134.64,2.82079356]
[1767529319984,2.84811052,134.7,134.64,9.50819356]
[1767529322885,2.84811052,134.7,134.64,2.82079356]
[1767529323888,2.84811052,134.7,134.64,9.50819356]
[1767529327988,2.60690666,134.69,134.63,6.6879]
[1767529328893,2.60690666,134.69,134.63,9.44274295]
[1767529329588,9.29190666,134.69,134.63,9.44274295]
[1767529329791,2.60690666,134.68,134.63,9.44274295]
[1767529331785,2.60690666,134.68,134.62,6.6884]
[1767529331992,9.29240666,134.68,134.61,2.75484295]
[1767529332192,2.60690666,134.67,134.61,2.75484295]
[1767529332400,9.29400666,134.65,134.59,2.75484295]
[1767529332590,2.60690666,134.65,134.59,2.75484295]
[1767529333290,2.60690666,134.69,134.6,2.75484295]
[1767529333495,2.60690666,134.69,134.61,2.75484295]
[1767529333698,2.60690666,134.69,134.63,2.75484295]
[1767529333894,0.05701841,134.66,134.63,2.75484295]
[1767529334794,0.05701841,134.66,134.61,2.75484295]
[1767529335598,0.05701841,134.66,134.61,9.44374295]
[1767529335994,0.05701841,134.66,134.62,0.05230794]
[1767529338296,2.66392507,134.66,134.62,0.05230794]
[1767529338604,2.66392507,134.66,134.59,2.75484295]
[1767529339699,9.35052507,134.66,134.59,2.75484295]
[1767529342102,9.35052507,134.66,134.59,9.44474295]
[1767529344111,2.60690666,134.65,134.59,9.44474295]
[1767529345917,2.60690666,134.64,134.57,2.75484295]
[1767529346610,0.05537863,134.62,134.57,2.75484295]
[1767529347709,0.05537863,134.62,134.58,9.44514295]
[1767529349710,0.05537863,134.62,134.59,2.75484295]
[1767529350010,0.00307069,134.62,134.59,9.44474295]
[1767529352109,0.00307069,134.62,134.6,6.6894]
[1767529359214,0.00307069,134.62,134.6,9.32491574]
[1767529360520,2.86231122,134.62,134.56,2.63551574]
[1767529361618,9.55081122,134.62,134.56,9.32691574]
[1767529361823,2.85924053,134.61,134.56,9.32691574]
[1767529362720,2.85924053,134.61,134.57,6.6909]
[1767529363721,2.85924053,134.61,134.58,0.0554521]
[1767529364218,0.00307069,134.62,134.58,0.0554521]
[1767529369414,2.86231122,134.62,134.58,0.0554521]
[1767529370626,2.85924053,134.61,134.55,9.32741574]
[1767529371626,0.00307069,134.62,134.56,2.63551574]
[1767529371926,84.97924053,134.62,134.56,2.63551574]
[1767529372325,0.05056664,134.6,134.56,2.63551574]
[1767529372521,0.05056664,134.6,134.57,6.6907]
[1767529373533,0.05056664,134.6,134.58,6.6904]
[1767529378135,0.05056664,134.6,134.57,6.6909]
[1767529380137,0.05056664,134.6,134.56,9.32691574]
[1767529381239,0.05056664,134.6,134.56,2.63551574]
[1767529381740,2.87986092,134.6,134.55,6.6919]
[1767529382943,2.87986092,134.6,134.55,9.4144906]
[1767529386937,2.87986092,134.6,134.55,2.7225906]
[1767529387138,2.87986092,134.6,134.54,6.6922]
[1767529388037,2.87986092,134.6,134.54,9.4147906]
[1767529390444,2.87986092,134.6,134.55,6.6918]
[1767529391445,2.87986092,134.6,134.55,9.4143906]
[1767529391745,0.05056664,134.6,134.55,9.4143906]
[1767529391939,0.05056664,134.6,134.57,2.7225906]
[1767529393047,0.05056664,134.6,134.57,2.77105676]
[1767529400348,2.82929428,134.64,134.57,2.77105676]
[1767529400549,85.04929428,134.65,134.57,2.77105676]
[1767529400750,85.04929428,134.65,134.58,2.7225906]
[1767529401640,0.05288893,134.63,134.59,9.4124906]
[1767529404452,0.05288893,134.63,134.6,2.7225906]
[1767529406655,2.82929428,134.67,134.61,2.7225906]
[1767529406857,85.04929428,134.67,134.61,2.7225906]
[1767529408053,85.04929428,134.67,134.61,9.4114906]
[1767529408257,82.24,134.68,134.62,2.7225906]
[1767529409450,85.06929428,134.68,134.62,2.7225906]
[1767529409966,82.24,134.68,134.62,2.7225906]
[1767529411660,9.51429428,134.69,134.63,2.85865365]
[1767529411861,82.24,134.68,134.63,2.85865365]
[1767529413068,2.64691818,134.67,134.61,2.85865365]
[1767529414569,2.64691818,134.67,134.61,9.54755365]
[1767529417462,2.76397978,134.69,134.64,9.49718731]
[1767529417770,82.24,134.7,134.64,9.49718731]
[1767529417957,85.00397978,134.7,134.64,9.49718731]
[1767529418474,85.00397978,134.7,134.66,0.0472442]
[1767529418775,2.76397978,134.69,134.66,0.0472442]
[1767529418971,2.76397978,134.69,134.63,6.6879]
[1767529419178,2.76397978,134.69,134.62,9.49838731]
[1767529419868,2.76397978,134.69,134.63,2.80998731]
[1767529420274,0.05028281,134.67,134.63,2.80998731]
[1767529420479,0.05028281,134.67,134.63,9.49788731]
[1767529421572,0.05028281,134.67,134.64,9.49728731]
[1767529421777,82.24,134.7,134.64,2.80998731]
[1767529421969,82.24,134.7,134.64,2.86017866]
[1767529422371,82.24,134.7,134.65,6.6869]
[1767529422571,82.26,134.72,134.66,2.80998731]
[1767529422771,85.02397978,134.72,134.66,2.80998731]
[1767529423571,85.02397978,134.72,134.66,9.49618731]
[1767529425377,85.02397978,134.72,134.67,6.6859]
[1767529425575,85.02397978,134.72,134.66,2.80998731]
[1767529426580,85.02397978,134.72,134.66,9.49638731]
[1767529427979,2.76397978,134.75,134.67,2.80998731]
[1767529428572,2.76397978,134.75,134.7,9.49448731]
[1767529430683,2.76397978,134.75,134.7,6.6845]
[1767529431888,6.6801,134.79,134.72,2.80998731]
[1767529432082,82.26,134.78,134.72,2.80998731]
[1767529432981,82.26,134.78,134.68,103.9927]
[1767529432982,2.76397978,134.77,134.7,9.49398731]
[1767529433575,2.76397978,134.76,134.7,2.80998731]
[1767529438690,6.681,134.77,134.7,2.80998731]
[1767529438892,9.44497978,134.77,134.7,2.80998731]
[1767529440495,2.71614006,134.76,134.7,2.80998731]
[1767529440690,2.71614006,134.76,134.7,9.49448731]
[1767529441686,2.71614006,134.76,134.7,2.80998731]
[1767529442588,2.71614006,134.76,134.68,6.6854]
[1767529442792,2.71614006,134.76,134.66,2.72237969]
[1767529443193,103.9322,134.77,134.66,2.72237969]
[1767529443194,2.71614006,134.74,134.66,2.72237969]
[1767529443493,2.71614006,134.72,134.66,2.72237969]
[1767529443681,2.71614006,134.72,134.66,9.40877969]
[1767529444492,0.04761966,134.7,134.66,9.40877969]
[1767529447889,0.04761966,134.7,134.67,6.6859]
[1767529448193,0.04761966,134.7,134.67,2.72237969]
[1767529448397,2.71614006,134.74,134.68,2.72237969]
[1767529449599,2.71614006,134.74,134.69,6.6849]
[1767529450011,2.71614006,134.74,134.68,2.72237969]
[1767529450502,2.71614006,134.74,134.66,2.72237969]
[1767529450695,0.04975456,134.72,134.66,2.72237969]
[1767529451598,0.04975456,134.72,134.66,9.40877969]
[1767529453993,0.04975456,134.72,134.67,6.6858]
[1767529458904,2.76589462,134.72,134.66,2.72237969]
[1767529459598,9.44939462,134.72,134.66,2.72237969]
[1767529461904,2.76589462,134.72,134.66,9.40847969]
[1767529462298,2.76589462,134.72,134.66,2.72237969]
[1767529463700,2.76589462,134.72,134.67,6.6855]
[1767529466001,2.76589462,134.72,134.68,6.6854]
[1767529466202,0.04975456,134.72,134.68,6.6854]
[1767529472006,2.89542431,134.72,134.67,2.72237969]
[1767529472202,2.89542431,134.72,134.63,16.69646933]
[1767529472404,2.89542431,134.72,134.63,2.79332233]
[1767529472603,2.84566975,134.7,134.63,9.48122233]
[1767529472797,2.84566975,134.69,134.63,9.48122233]
[1767529473107,9.53106975,134.69,134.63,2.79332233]
[1767529474201,2.84566975,134.69,134.64,2.91324997]
[1767529475713,2.84566975,134.69,134.64,9.60064997]
[1767529478214,9.57075906,134.71,134.65,2.91324997]
[1767529478414,82.4,134.72,134.66,2.91324997]
[1767529479214,82.4,134.72,134.66,9.59964997]
[1767529481411,82.4,134.72,134.67,9.59904997]
[1767529483614,82.4,134.72,134.68,2.91324997]
[1767529484004,0.04689296,134.71,134.68,9.59864997]
[1767529502321,0.04689296,134.71,134.68,2.91324997]
[1767529504324,0.04689296,134.71,134.67,6.6859]
[1767529504929,0.04689296,134.71,134.68,9.51051424]
[1767529505425,82.4,134.72,134.69,2.82521424]
[1767529506628,82.45476813,134.72,134.69,2.82521424]
[1767529508828,82.45476813,134.72,134.69,2.87966924]
[1767529509125,82.45476813,134.72,134.69,0.054455]
[1767529511330,85.2546105,134.72,134.69,0.054455]
[1767529515930,82.45476813,134.72,134.69,0.054455]
[1767529516120,82.45476813,134.72,134.69,2.87966924]
[1767529517127,82.45476813,134.72,134.69,0.054455]
[1767529517537,82.45476813,134.72,134.69,6.739255]
[1767529523428,73.17202309,134.72,134.69,6.739255]
[1767529525827,2.79984237,134.74,134.69,6.739255]
[1767529526028,85.31984237,134.73,134.69,6.739255]
[1767529526530,82.52,134.73,134.69,9.56446924]
[1767529526735,82.52,134.74,134.7,6.6843]
[1767529527233,0.05327052,134.73,134.7,6.6843]
[1767529528230,0.05327052,134.73,134.71,9.50911424]
[1767529529223,85.31984237,134.76,134.72,6.6835]
[1767529530637,85.31984237,134.76,134.73,0.05329907]
[1767529530840,82.52,134.76,134.73,0.05329907]
[1767529532735,2.68502457,134.78,134.73,9.45864759]
[1767529532927,85.22502457,134.78,134.73,9.45864759]
[1767529536946,2.81016183,134.77,134.73,6.73619907]
[1767529538237,2.81016183,134.77,134.73,0.05329907]
[1767529538748,2.85833558,134.76,134.73,0.05329907]
[1767529539442,0.04817375,134.76,134.73,0.05329907]
[1767529541534,0.04817375,134.76,134.73,6.73579907]
[1767529546149,0.04817375,134.76,134.74,6.6824]
[1767529549253,0.04817375,134.76,134.73,0.05329907]
[1767529555257,0.04817375,134.76,134.73,6.73619907]
[1767529557153,0.04817375,134.76,134.73,9.6248332]
[1767529557551,0.04817375,134.76,134.74,6.6824]
[1767529561060,82.6,134.8,134.75,6.682]
[1767529561266,85.38441977,134.8,134.75,6.682]
[1767529562267,85.38441977,134.8,134.76,0.05373752]
[1767529562767,82.6,134.8,134.76,6.73503752]
[1767529563869,2.78441977,134.81,134.76,6.73503752]
[1767529564071,2.78441977,134.8,134.76,0.05373752]
[1767529564670,85.38441977,134.79,134.76,0.05373752]
[1767529567768,85.38441977,134.79,134.73,9.40235261]
[1767529568872,2.78441977,134.78,134.73,9.40235261]
[1767529569061,2.78441977,134.78,134.75,0.05429227]
[1767529569674,2.78441977,134.78,134.71,9.40295261]
[1767529571979,2.78441977,134.78,134.73,0.0516246]
[1767529573081,2.83902488,134.77,134.73,0.0516246]
[1767529577280,2.83902488,134.77,134.7,16.62259961]
[1767529577678,2.78441977,134.75,134.7,13.903147]
[1767529577876,2.78441977,134.76,134.69,13.903147]
[1767529578078,2.78441977,134.76,134.7,16.62259961]
[1767529578483,0.04951189,134.74,134.7,16.62259961]
[1767529578684,2.78441977,134.76,134.7,16.62259961]
[1767529579580,2.78441977,134.76,134.7,2.71945261]
[1767529582786,2.78441977,134.76,134.7,9.40385261]
[1767529583290,2.78441977,134.77,134.71,2.71945261]
[1767529583984,2.78441977,134.77,134.69,16.62259961]
[1767529584191,2.78441977,134.77,134.73,0.05601256]
[1767529585586,0.05080084,134.76,134.73,0.05601256]
[1767529586592,2.83522061,134.76,134.73,0.05601256]
[1767529593091,0.05080084,134.76,134.73,0.05601256]
[1767529594083,0.05080084,134.76,134.73,6.73891256]
[1767529594493,0.05080084,134.76,134.73,9.52216681]
[1767529594792,85.56534096,134.78,134.74,6.6823]
[1767529595595,2.90534096,134.78,134.74,6.6823]
[1767529597502,2.90534096,134.78,134.73,0.05601256]
[1767529603492,2.74341899,134.8,134.73,2.83926681]
[1767529603890,2.74341899,134.8,134.73,9.52206681]
[1767529605205,2.74341899,134.8,134.74,6.6824]
[1767529608512,0.05572396,134.78,134.74,6.6824]
[1767529619616,0.05572396,134.78,134.74,9.46565425]
[1767529620310,2.77798448,134.82,134.76,2.76548478]
[1767529621322,103.39536126,134.84,134.78,2.76548478]
[1767529621713,23.41334574,134.84,134.78,2.81815008]
[1767529622822,23.41334574,134.84,134.78,9.49855008]
[1767529623423,23.41334574,134.84,134.79,2.76548478]
[1767529623617,0.05369672,134.82,134.79,2.76548478]
[1767529625024,0.05369672,134.82,134.78,6.7330653]
[1767529625824,0.05369672,134.82,134.78,9.49855008]
[1767529631631,0.05369672,134.82,134.78,2.81815008]
[1767529634632,0.05369672,134.82,134.78,0.0526653]
[1767529634633,2.77798448,134.81,134.78,0.0526653]
[1767529636631,0.05369672,134.82,134.78,0.0526653]
[1767529637131,0.05369672,134.82,134.78,2.81815008]
[1767529638523,0.05369672,134.82,134.78,9.49855008]
[1767529638727,0.05369672,134.82,134.78,2.81815008]
[1767529652345,2.79372122,134.82,134.78,0.0526653]
[1767529653448,0.05369672,134.82,134.78,0.0526653]
[1767529655651,2.82071423,134.82,134.75,2.84849912]
[1767529656743,2.82071423,134.82,134.76,9.52999912]
[1767529657049,2.76701751,134.82,134.77,0.04896822]
[1767529657249,2.76701751,134.82,134.77,2.89746734]
[1767529658548,82.78,134.83,134.77,2.89746734]
[1767529658753,30.08037877,134.84,134.77,2.89746734]
[1767529659053,82.84,134.83,134.77,2.89746734]
[1767529659250,2.76701751,134.83,134.77,2.89746734]
[1767529659444,82.88869395,134.82,134.77,2.89746734]
[1767529659644,82.88869395,134.82,134.77,9.57846734]
[1767529660152,0.04869395,134.82,134.78,2.84849912]
[1767529660354,82.88869395,134.82,134.79,2.84849912]
[1767529666056,82.88869395,134.82,134.78,6.6805]
[1767529667254,82.88869395,134.82,134.78,9.52899912]
[1767529668358,85.65571146,134.82,134.77,2.89746734]
[1767529669558,82.88869395,134.82,134.78,2.84849912]
[1767529671759,82.88869395,134.82,134.78,9.52889912]
[1767529672057,0.04869395,134.82,134.78,9.52889912]
[1767529672250,82.86,134.82,134.78,9.52889912]
[1767529672451,82.86,134.82,134.79,9.52849912]
[1767529675157,73.58455381,134.82,134.79,9.52849912]
[1767529676448,103.51536126,134.84,134.79,9.52849912]
[1767529677063,103.51536126,134.84,134.8,0.04945229]
[1767529679564,23.40237877,134.84,134.8,0.04945229]
[1767529679754,82.88,134.83,134.8,0.04945229]
[1767529680156,85.63557369,134.83,134.8,0.04945229]
[1767529680659,82.88,134.83,134.8,0.04945229]
[1767529686471,82.9,134.83,134.8,0.04945229]
[1767529687671,82.9,134.83,134.8,6.72885229]
[1767529688672,82.94916052,134.83,134.8,6.72885229]
[1767529693173,82.94916052,134.83,134.8,0.04945229]
[1767529693375,85.70473421,134.83,134.8,0.04945229]
[1767529696074,2.75557369,134.82,134.77,13.903147]
[1767529696271,2.75557369,134.82,134.75,16.619209]
[1767529697075,2.75557369,134.81,134.75,16.619209]
[1767529697375,85.67557369,134.8,134.77,0.05009848]
[1767529697767,85.67557369,134.8,134.75,2.716062]
[1767529698168,2.75557369,134.79,134.74,20.585147]
[1767529698675,2.75557369,134.79,134.74,6.682]
[1767529699269,2.75557369,134.79,134.73,16.619209]
[1767529700073,2.75557369,134.79,134.73,23.302109]
[1767529703478,2.75557369,134.79,134.74,6.6825]
[1767529704780,2.75557369,134.79,134.73,23.302109]
[1767529706681,2.75557369,134.79,134.74,6.6824]
[1767529712897,2.75557369,134.79,134.75,0.05596497]
[1767529713897,0.05476311,134.78,134.75,0.05596497]
[1767529721400,0.05476311,134.78,134.75,6.73796497]
[1767529725906,2.88898726,134.81,134.76,2.91032384]
[1767529726105,83.02,134.8,134.76,2.91032384]
[1767529726305,2.88898726,134.81,134.76,2.91032384]
[1767529726306,85.90898726,134.81,134.76,2.91032384]
[1767529726997,2.88898726,134.8,134.75,6.682]
[1767529727204,2.88898726,134.8,134.77,0.05059284]
[1767529739020,2.88898726,134.8,134.74,13.903147]
[1767529739218,2.88898726,134.8,134.73,20.585947]
[1767529739919,2.88898726,134.8,134.73,23.49627084]
[1767529740520,9.56848726,134.8,134.73,23.49627084]
[1767529740718,2.74315187,134.79,134.73,23.49627084]
[1767529741224,2.74315187,134.78,134.73,13.903147]
[1767529741414,85.80315187,134.77,134.72,13.903147]
[1767529742420,2.74315187,134.76,134.71,16.64769656]
[1767529742721,2.74315187,134.76,134.71,2.74454956]
[1767529743121,2.74315187,134.76,134.7,20.587547]
[1767529744126,2.74315187,134.76,134.7,13.903147]
[1767529745322,2.74315187,134.76,134.69,23.33259656]
[1767529746726,83.06,134.77,134.71,2.74454956]
[1767529746915,85.80315187,134.77,134.71,2.74454956]
[1767529747320,2.74315187,134.77,134.72,2.74454956]
[1767529747531,85.82315187,134.77,134.72,2.74454956]
[1767529750528,2.74315187,134.76,134.7,9.42904956]
[1767529752725,2.74315187,134.75,134.68,20.588247]
[1767529753122,2.74315187,134.75,134.68,23.33279656]
[1767529753322,2.74315187,134.74,134.68,9.42964956]
[1767529753722,85.84315187,134.73,134.66,23.33369656]
[1767529754232,85.84315187,134.73,134.67,9.43044956]
[1767529754723,85.84315187,134.73,134.67,2.74454956]
[1767529754931,85.84315187,134.73,134.68,6.6854]
[1767529755332,2.74315187,134.73,134.68,2.74454956]
[1767529755733,83.12,134.74,134.68,2.74454956]
[1767529755926,83.12,134.74,134.69,9.42944956]
[1767529762233,85.86315187,134.74,134.69,9.42944956]
[1767529768134,2.74315187,134.76,134.7,9.42894956]
[1767529768338,83.16,134.74,134.7,9.42894956]
[1767529776651,2.9035555,134.75,134.7,9.42894956]
[1767529784460,2.9035555,134.75,134.7,2.93953311]
[1767529785059,2.9035555,134.75,134.7,9.62353311]
[1767529794260,2.9035555,134.75,134.7,6.684]
[1767529796568,2.9035555,134.75,134.7,9.62353311]
[1767529800563,2.9035555,134.75,134.7,2.93953311]
[1767529800765,2.9035555,134.75,134.68,23.43780463]
[1767529800965,2.9035555,134.75,134.67,13.903147]
[1767529801266,2.9035555,134.75,134.66,16.75280463]
[1767529801873,2.89658534,134.73,134.66,23.43880463]
[1767529803770,2.89658534,134.72,134.66,16.75280463]
[1767529805363,2.89658534,134.72,134.66,2.84965763]
[1767529806862,2.89658534,134.72,134.65,9.53655763]
[1767529808271,2.89658534,134.72,134.66,6.6864]
[1767529808878,2.89658534,134.71,134.64,24.06143924]
[1767529809174,2.89658534,134.71,134.64,26.91109687]
[1767529809378,2.89658534,134.71,134.65,6.6869]
[1767529812969,2.89658534,134.71,134.66,2.84965763]
[1767529813573,2.89658534,134.71,134.65,6.6869]
[1767529815975,2.89658534,134.7,134.65,6.6869]
[1767529817670,2.89658534,134.69,134.63,159.81932355]
[1767529817980,2.89658534,134.69,134.62,2.84965763]
[1767529818678,2.89658534,134.68,134.62,9.53765763]
[1767529819273,2.89658534,134.7,134.62,2.84965763]
[1767529820077,2.89658534,134.7,134.65,6.6865]
[1767529821284,2.89658534,134.7,134.64,9.53705763]
[1767529827784,2.89658534,134.7,134.65,2.84965763]
[1767529827978,2.89658534,134.72,134.66,2.84965763]
[1767529829379,83.34,134.73,134.68,2.84965763]
[1767529829886,86.23658534,134.73,134.68,2.84965763]
[1767529831182,86.23658534,134.73,134.67,6.6858]
[1767529831385,92.91958534,134.73,134.66,9.58974247]
[1767529831590,2.88793344,134.72,134.66,9.58974247]
[1767529834988,2.88793344,134.72,134.66,2.90334247]
[1767529836983,2.88793344,134.72,134.66,9.58974247]
[1767529839685,2.88793344,134.72,134.67,9.43315103]
[1767529839885,2.67636718,134.72,134.63,16.65039803]
[1767529840085,2.67636718,134.72,134.63,2.74725103]